Cogmind - Beta 14 *** ADVENTURER MODE // 2024.08.07 @ 21:49:39 Player: AzyMyt Result: Destroyed by G-67 Veteran with Field Laser Performance ------------- Evolutions (6) 3000 Regions Visited (7) 1400 Robots Destroyed (208) 1040 Value Destroyed (8040) 8040 Prototype IDs (15) 300 Alien Tech Used (0) 0 Bonus (111) 111 TOTAL SCORE: 13891 Bonus ------- High Alert Combat Kills 125 Follower Combat Kills 77 Friendly Fire -91 Cogmind --------- Core Integrity 0/1150 Matter 57/300 Energy 100/100 System Corruption 9% Temperature Cool (12) Movement Core (1450) Ox28 Location -4/Factory Parts ------- > --- POWER (1) -------- (None) > --- PROPULSION (6) --- (None) > --- UTILITY (9) ------ Advanced Heat Sink Huge Storage Unit Improved Target Analyzer > --- WEAPON (3) ------- Mini Assault Cannon > --- INVENTORY (25) --- Light Angular Momentum Engine Light Angular Momentum Engine Neutrino Core Micro Fission Core Light Antimatter Reactor Myomer Leg Myomer Leg Advanced Heat Sink Advanced Heat Sink Huge Storage Unit Huge Storage Unit Large Matter Pod (0) High-capacity Matter Pod (0) Plasma Rifle Flak Gun Coil Gun 8R-AWN's Boregun Hardcell Cannon Hardcell Cannon Hypervelocity Mass Driver Hypervelocity Mass Driver Peak State ------------ > --- POWER ------------ Micro Fission Core > --- PROPULSION ------- Flexi-carbon Leg Myomer Leg Advanced Myomer Leg Wheel Centrium Wheel Centrium Wheel > --- UTILITY ---------- Improved Heat Sink Improved Heat Sink Huge Storage Unit Advanced Signal Interpreter Improved Target Analyzer Precision Matter Filter Advanced Reaction Control System Hacking Suite Advanced Hacking Suite > --- WEAPON ----------- Tesla Rifle KE Penetrator Hardcell Cannon > --- INVENTORY -------- Light Angular Momentum Engine Light Angular Momentum Engine Neutrino Core Micro Fission Core Light Antimatter Reactor Advanced Heat Sink Advanced Heat Sink Huge Storage Unit Huge Storage Unit Large Matter Pod High-capacity Matter Pod Phase Shifter Flak Gun Coil Gun 8R-AWN's Boregun Mini Assault Cannon Hardcell Cannon Hardcell Cannon Hardcell Cannon Hypervelocity Mass Driver Hypervelocity Mass Driver Hypervelocity Mass Driver Advanced EMP Blaster Mini Grenade Launcher [Rating: 112] Favorites ----------- Power Cooled Ion Engine Engine Cooled Ion Engine Power Core Micro Fission Core Reactor Light Antimatter Reactor Propulsion Advanced Myomer Leg Treads Light Treads Leg Advanced Myomer Leg Wheel Wheel Utility Hacking Suite Device Improved Heat Sink Storage Huge Storage Unit Processor Transport Network Coupler Hackware Hacking Suite Protection Light Armor Plating Weapon Mass Driver Energy Gun Improved Medium Laser Energy Cannon Particle Cannon Ballistic Gun 8R-AWN's Boregun Ballistic Cannon Mass Driver Launcher Advanced EMP Blaster Build | -11 -10 -9 -8 -7 -6 -5 -4 ------- Run | Yrd Mat Mat Mat Fac Fac Fac Fac Slots Evolved 12 | . . 2 2 2 2 2 2 Power . | . . . . . . . . Propulsion 4 | . . . . . . 2 2 Utility 7 | . . 2 2 1 2 . . Weapon 1 | . . . . 1 . . . Parts Attached 154 | 6 6 14 12 16 6 22 72 Power 14 | 1 1 1 . 2 . 2 7 Engine 8 | 1 1 1 . 2 . 1 2 Core 3 | . . . . . . 1 2 Reactor 3 | . . . . . . . 3 Propulsion 45 | 2 . 2 3 1 1 7 29 Treads 2 | 2 . . . . . . . Leg 26 | . . 2 3 1 1 7 12 Wheel 17 | . . . . . . . 17 Hover . | . . . . . . . . Flight . | . . . . . . . . Utility 46 | 1 4 3 5 3 5 5 20 Device 27 | . . . 2 2 3 3 17 Storage 5 | 1 3 . 1 . . . . Processor 6 | . 1 2 . . . 1 2 Hackware 4 | . . . 2 1 . . 1 Protection 4 | . . 1 . . 2 1 . Artifact . | . . . . . . . . Weapon 49 | 2 1 8 4 10 . 8 16 Energy Gun 14 | 1 . 3 3 2 . 1 4 Energy Cannon 2 | . . 2 . . . . . Ballistic Gun 15 | 1 1 3 . 2 . 4 4 Ballistic Cannon 13 | . . . . 5 . 2 6 Launcher 5 | . . . 1 1 . 1 2 Special Weapon . | . . . . . . . . Impact Weapon . | . . . . . . . . Slashing Weapon . | . . . . . . . . Piercing Weapon . | . . . . . . . . Special Melee Weapon . | . . . . . . . . Unidentified Prototypes 10 | . . 6 3 . . . 1 Parts Lost 85 | . . . 1 7 1 13 63 Power 6 | . . . . 1 . . 5 Propulsion 34 | . . . . 1 . 4 29 Utility 26 | . . . 1 3 1 4 17 Weapon 19 | . . . . 2 . 5 12 Highest Loss Streak 11 | . . . 1 4 1 7 11 To Critical Strikes 1 | . . . . . . . 1 Average Slot Usage (%) 92 | . 95 96 99 98 97 95 82 Engine 5 | . 14 11 9 6 6 3 . Treads 3 | . 28 13 . . . . . Leg 12 | . . 8 17 14 13 20 8 Wheel 3 | . . . . . . . 9 Device 10 | . . . 9 9 20 15 13 Storage 7 | . 14 11 9 7 6 5 5 Processor 13 | . 9 20 18 12 6 10 12 Hackware 11 | . . . 14 22 13 11 9 Protection 2 | . . 9 3 . 10 4 . Energy Gun 6 | . 14 1 9 9 . 4 4 Ballistic Gun 7 | . 14 10 9 7 6 5 4 Ballistic Cannon 4 | . . . . 5 13 5 5 Peak Build Rating 112 | 6 8 34 47 56 66 75 112 Average Rating 55 | 4 6 19 44 54 61 68 79 On Entrance 35 | . 6 8 34 47 52 66 73 Naked Turns . | . . . . . . . . Heaviest Build 122 | 10 87 41 100 112 122 121 118 Greatest Support 100 | 40 40 40 59 59 59 94 100 Greatest Overweight (x) 28 | . 2 1 1 2 2 2 28 Average Overweight (x) 1 | . . . . 1 2 1 3 Largest Inventory Capacity 25 | 8 25 15 25 25 25 25 25 Average Capacity 22 | 6 11 15 21 25 25 25 25 Most Carried 25 | 4 10 15 25 25 25 24 25 Average Carried 20 | 2 6 13 20 23 21 22 22 Final Capacity 25 | 8 15 15 25 25 25 25 25 Final Carried 25 | 4 10 14 25 21 25 23 21 Class Distribution -------------------- 27% | Hacker-Skirmisher 16% | Hacker-Mutant 16% | Hacker-Tank 12% | Mutant 9% | Scavenger-Skirmisher 8% | Scavenger-Gunner 4% | Scavenger-Mutant 3% | Hacker-Gunner Dominant Class ---------------- Mutant | -10/Materials Mutant | -9/Materials Hacker-Mutant | -8/Materials Hacker-Skirmisher | -7/Factory Hacker-Tank | -6/Factory Hacker-Skirmisher | -5/Factory Scavenger-Gunner | -4/Factory Resources | -11 -10 -9 -8 -7 -6 -5 -4 ----------- Run | Yrd Mat Mat Mat Fac Fac Fac Fac Matter Collected 6866 | 234 104 347 831 1077 525 605 3143 Remotely 677 | . . . . . . 67 610 Salvage Created 7874 | . 206 427 1284 1618 569 646 3124 Parts 411 | . 21 30 61 108 27 26 138 Haulers Intercepted 14 | . 1 3 4 3 1 . 2 Recyclers Shooed 20 | . 1 3 . 2 1 . 13 Parts Field Recycled . | . . . . . . . . Retrieved Matter . | . . . . . . . . Parts Self-Destructed . | . . . . . . . . Prevented . | . . . . . . . . Kills | -11 -10 -9 -8 -7 -6 -5 -4 ------- Run | Yrd Mat Mat Mat Fac Fac Fac Fac Combat Hostiles Destroyed 151 | . 9 7 16 32 13 16 58 Guns 92 | . 9 1 16 26 . 7 33 Cannons 52 | . . 6 . 6 12 4 24 AOE 6 | . . . . . 1 5 . Classes Destroyed 15 | . 3 2 4 4 1 . 1 Worker 13 | . . . . 5 . . 8 Builder 15 | . . . 1 6 . . 8 Tunneler 1 | . . . 1 . . . . Hauler 14 | . 1 3 4 3 1 . 2 Recycler 3 | . . . . . . . 3 Operator 1 | . . . 1 . . . . Watcher 10 | . 1 1 1 2 2 2 1 Swarmer 40 | . 9 3 . 12 . 1 15 Grunt 57 | . . 2 12 10 10 12 11 Brawler 1 | . . . . 1 . . . Duelist 2 | . . . . 2 . . . Sentry 15 | . . 2 3 2 . 3 5 Demolisher 1 | . . . . . 1 . . Hunter 14 | . . . 1 2 . . 11 Programmer 21 | . . . . 3 2 . 16 Best Kill Streak 9 | . 3 3 3 6 7 4 9 Combat Bots Only 7 | . 3 3 3 6 6 4 7 Max Kills in Single Turn 3 | . 2 1 2 3 1 2 3 Gunslinging 1 | . 1 . . 1 . . . Exploded 2 | . . . . . 1 2 . Melee . | . . . . . . . . Uniques/NPCs Destroyed . | . . . . . . . . Combat | -11 -10 -9 -8 -7 -6 -5 -4 -------- Run | Yrd Mat Mat Mat Fac Fac Fac Fac Hostile Shots Fired 1376 | . 44 25 63 166 40 136 902 Missed 472 | . 17 9 19 44 12 37 334 Damage Taken 12175 | . 166 131 546 1492 611 1764 7465 Core 2008 | . 19 25 135 343 110 217 1159 Absorbed by Shields 16 | . . . . . . . 16 Redirected to Shielding 105 | . . . . . 105 . . Ignored by Resistances 3640 | . 54 41 157 433 166 521 2268 Regen/Repaired (Parts) 288 | . . . 72 . . . 216 Core Remaining (%) 82 | 100 92 93 75 51 87 78 . Volleys Fired 506 | . 27 23 71 70 26 42 247 Largest 3 | . 2 2 2 3 3 3 3 Hottest 198 | . 60 98 91 165 142 175 198 Shots Fired 1282 | . 53 46 140 186 78 112 667 Gun 832 | . 53 23 140 140 26 81 369 Cannon 441 | . . 23 . 46 52 26 294 Launcher 9 | . . . . . . 5 4 Special . | . . . . . . . . Kinetic 918 | . 27 23 72 125 78 71 522 Thermal 311 | . 26 23 68 40 . 36 118 Explosive 6 | . . . . . . 5 1 Electromagnetic 47 | . . . . 21 . . 26 Robot Hit Streak 29 | . 12 13 16 18 13 19 29 Robot Miss Streak 6 | . 3 1 3 6 3 4 4 Penetration Max 2 | . . . 1 2 1 1 1 Secondary Targets 6 | . 2 . 1 3 . . . Max Gunslinging Chain 1 | . 1 . 1 1 . . . Shots Hit Robots 882 | . 37 27 102 130 55 91 440 Core Hits 530 | . 16 13 40 119 26 78 238 Critical Kills 24 | . . . 11 6 1 . 6 Critical Parts Destroyed 47 | . . 1 15 11 . . 20 Critical Strikes 108 | . . 1 31 20 1 4 51 Burn 11 | . . . 5 . . 3 3 Destroy 71 | . . 1 26 17 1 . 26 Blast 24 | . . . . 3 . 1 20 Corrupt 2 | . . . . . . . 2 Melee Attacks . | . . . . . . . . Impact . | . . . . . . . . Slashing . | . . . . . . . . Piercing . | . . . . . . . . Sneak Attacks . | . . . . . . . . Combat Hostiles . | . . . . . . . . Follow-up Attacks . | . . . . . . . . Damage Inflicted 23434 | . 370 488 1936 3424 1773 2910 12533 Guns 12924 | . 370 121 1936 2243 369 1556 6329 Cannons 8737 | . . 367 . 1034 1312 581 5443 Explosions 1704 | . . . . 82 92 773 757 Melee . | . . . . . . . . Ramming 69 | . . . . 65 . . 4 Kinetic 16340 | . 169 121 1050 2215 1681 1612 9492 Thermal 5275 | . 201 367 886 734 92 705 2290 Explosive 918 | . . . . 82 . 593 243 Electromagnetic 832 | . . . . 328 . . 504 Impact . | . . . . . . . . Slashing . | . . . . . . . . Piercing . | . . . . . . . . Highest Corruption 9 | . . . 5 1 2 2 9 Average Corruption 4 | . . . 5 1 2 1 6 Corruption Purged . | . . . . . . . . Corruption Blocked . | . . . . . . . . Effects 142 | . . . 35 12 . 5 90 Message Errors 34 | . . . 10 1 . 1 22 Matter Fused 42 | . . . 10 2 . 2 28 Heat Flow Errors 9 | . . . 1 1 . 1 6 Energy Discharges 19 | . . . 6 6 . . 7 Parts Rejected 2 | . . . . . . . 2 Parts Fused 3 | . . . 1 . . . 2 Data Loss (minor) 13 | . . . 2 1 . 1 9 Data Loss (major) 8 | . . . 2 . . . 6 Misfires 1 | . . . 1 . . . . Alerts 3 | . . . 2 . . . 1 Weapon Failures 8 | . . . . 1 . . 7 Overload Shots . | . . . . . . . . Overflow Damage 498 | . . 3 . 58 79 31 327 Projectiles 388 | . . 3 . 58 79 31 217 Explosions 110 | . . . . . . . 110 Melee . | . . . . . . . . Knockbacks 90 | . . . . 10 8 2 70 Impact 1 | . . . . 1 . . . Kinetic 85 | . . . . 8 8 2 67 Secondary 4 | . . . . 1 . . 3 Self-Inflicted Damage 178 | . . . 23 . . 75 80 Shots 4 | . . . 1 . . 1 2 Rammed . | . . . . . . . . Targets Rammed 5 | . . . . 4 . . 1 Kicked 5 | . . . . 4 . . 1 Crushed . | . . . . . . . . Highest Temperature 278 | . 40 122 171 255 81 61 278 Average Temperature 47 | . 14 43 38 51 19 18 65 Received Heat Transfer 2385 | . . 54 414 210 213 486 1008 Effects 1 | . . . . . . . 1 Energy Bleed 1 | . . . . . . . 1 Siege Activations . | . . . . . . . . Robots Corrupted 1 | . . . . . . . 1 Combat Hostiles 1 | . . . . . . . 1 Parts Fried 2 | . . . . . . . 2 Impact Corruptions . | . . . . . . . . Robots Melted . | . . . . . . . . Combat Hostiles . | . . . . . . . . Parts Melted 5 | . . . 4 . . . 1 Heat Transferred 10008 | . 450 629 2220 1575 50 1432 3652 Parts Sabotaged . | . . . . . . . . Parts Stolen . | . . . . . . . . Parts Stripped . | . . . . . . . . Power Chain Reactions 1 | . . . . . . . 1 Alert | -11 -10 -9 -8 -7 -6 -5 -4 ------- Run | Yrd Mat Mat Mat Fac Fac Fac Fac Peak Influence 505 | . 219 278 425 329 402 348 505 Initial 138 | . . 42 . . 138 102 68 Average 172 | . 77 117 176 112 219 200 228 Maximum Alert Level 2 | . 1 1 2 1 2 1 2 Low Security (%) 62 | 100 90 83 62 83 45 53 43 Level 1 31 | . 9 16 33 16 43 46 42 Level 2 5 | . . . 4 . 10 . 13 Level 3 . | . . . . . . . . Level 4 . | . . . . . . . . Level 5 . | . . . . . . . . High Security . | . . . . . . . . Max Security . | . . . . . . . . Squads Dispatched 51 | . . 3 3 14 4 10 17 Investigation 15 | . . 1 3 4 2 2 3 Extermination 12 | . . . . 3 1 1 7 Reinforcement 11 | . . 2 . 3 1 1 4 Assault . | . . . . . . . . Garrison 13 | . . . . 4 . 6 3 Intercept . | . . . . . . . . Searches Triggered . | . . . . . . . . Construction Impeded 4 | . . . . 2 . . 2 Haulers Reinforced 2 | . . . . . 1 . 1 Active Scanning Responses . | . . . . . . . . Cargo Convoy Interrupts . | . . . . . . . . Stealth | -11 -10 -9 -8 -7 -6 -5 -4 --------- Run | Yrd Mat Mat Mat Fac Fac Fac Fac Distress Signals 21 | . 1 2 4 5 . 1 8 Communications Jammed . | . . . . . . . . Distress Signals . | . . . . . . . . Times Spotted 258 | . 15 10 30 49 20 30 104 Peak Tracking Total 14 | . 4 3 5 6 3 5 14 Tactical Retreats 23 | . 2 1 7 5 2 2 4 Traps | -11 -10 -9 -8 -7 -6 -5 -4 ------- Run | Yrd Mat Mat Mat Fac Fac Fac Fac Traps Triggered 7 | . . . 2 4 . . 1 Indirectly . | . . . . . . . . Trap Hack Attempts . | . . . . . . . . Triggered . | . . . . . . . . Disarmed 6 | . . . 6 . . . . Reprogrammed . | . . . . . . . . Reused . | . . . . . . . . Traps Extracted . | . . . . . . . . Installed . | . . . . . . . . Triggered . | . . . . . . . . Machines | -11 -10 -9 -8 -7 -6 -5 -4 ---------- Run | Yrd Mat Mat Mat Fac Fac Fac Fac Machines Disabled 26 | . . . 6 4 6 2 8 Max in Single Turn 2 | . . . 1 1 2 1 2 Garrison Access 2 | . . . . 1 . 1 . Machines Repaired . | . . . . . . . . Machines Dismantled . | . . . . . . . . Machines Sabotaged . | . . . . . . . . Overloaded Fab Kills . | . . . . . . . . Hacking | -11 -10 -9 -8 -7 -6 -5 -4 --------- Run | Yrd Mat Mat Mat Fac Fac Fac Fac Machines Accessed 56 | . 6 4 8 15 4 5 14 Terminals 32 | . 6 4 5 7 1 1 8 Fabricators 6 | . . . . 3 1 . 2 Repair Stations 3 | . . . 1 1 . . 1 Recycling Units 8 | . . . 1 2 . 2 3 Scanalyzers 5 | . . . 1 1 2 1 . Garrison Access 2 | . . . . 1 . 1 . Total Hacks 134 | . 14 12 25 28 10 12 33 Successful 81 | . 8 8 20 19 6 7 13 Failed 53 | . 6 4 5 9 4 5 20 Catastrophic 5 | . 1 1 . 1 . . 2 Database Lockouts . | . . . . . . . . Manual 81 | . 15 10 21 13 4 5 13 Terminals 80 | . 14 12 19 15 2 4 14 Fabricators 14 | . . . . 5 2 . 7 Repair Stations 8 | . . . 3 1 . . 4 Recycling Units 18 | . . . 1 3 . 6 8 Scanalyzers 10 | . . . 2 1 6 1 . Garrison Access 4 | . . . . 3 . 1 . Terminal Hacks 33 | . 6 4 9 9 1 . 4 Part Schematic 1 | . . . . 1 . . . Robot Analysis 6 | . 3 1 2 . . . . Prototype ID Bank 2 | . . . . 2 . . . Open Door 1 | . . . . . . . 1 Open DSF 1 | . . . . 1 . . . Level Access Points 4 | . 1 1 1 . . . 1 Branch Access Points 1 | . . . . . . . 1 Terminal Index 3 | . 1 . 1 1 . . . Recycling Unit Index 1 | . . . . . . . 1 Scanalyzer Index 1 | . . . 1 . . . . Alert Level 4 | . 1 1 1 1 . . . Unreport Threat 2 | . . . 1 1 . . . Disarm Traps 1 | . . . 1 . . . . Surveillance Status 1 | . . . 1 . . . . Transport Status 1 | . . . . 1 . . . Recall Reinforcements 2 | . . . . 1 1 . . Registered Components 1 | . . 1 . . . . . Fabricator Hacks 8 | . . . . 3 2 . 3 Load Schematic 4 | . . . . 1 1 . 2 Build 4 | . . . . 2 1 . 1 Repair Station Hacks 7 | . . . 2 1 . . 4 Scan Component 3 | . . . 1 . . . 2 Repair 3 | . . . 1 . . . 2 Refit 1 | . . . . 1 . . . Recycling Unit Hacks 6 | . . . . 1 . 3 2 Process 1 | . . . . . . 1 . Report Inventory 1 | . . . . . . 1 . Retrieve Matter 2 | . . . . 1 . 1 . Retrieve Components 2 | . . . . . . . 2 Scanalyzer 5 | . . . 2 . 2 1 . Insert Component 4 | . . . 1 . 2 1 . Analyze 1 | . . . 1 . . . . Garrison Access Hacks 2 | . . . . 1 . 1 . Seal Access 2 | . . . . 1 . 1 . Unauthorized Hacks 20 | . 2 4 7 4 1 2 . Terminals 12 | . 2 4 5 . . 1 . Track 2 | . . 1 1 . . . . Assimilate 4 | . . 1 2 . . 1 . Botnet 4 | . 2 1 1 . . . . Disrupt 2 | . . 1 1 . . . . Fabricators 2 | . . . . 2 . . . Liberate 1 | . . . . 1 . . . Fabnet 1 | . . . . 1 . . . Repair Stations 1 | . . . 1 . . . . Mechanics 1 | . . . 1 . . . . Recycling Units 4 | . . . 1 2 . 1 . Monitor 1 | . . . . . . 1 . Tunnel 3 | . . . 1 2 . . . Scanalyzers 1 | . . . . . 1 . . Researchers 1 | . . . . . 1 . . Garrison Access . | . . . . . . . . Data Cores Recovered . | . . . . . . . . Used . | . . . . . . . . Hacking Detections 47 | . 6 4 7 11 3 3 13 Full Trace Events 9 | . . . . 2 2 2 3 Feedback Events 1 | . . . . . . 1 . Corruption 1 | . . . . . . 1 . Feedback Blocked . | . . . . . . . . Robot Schematics Acquired . | . . . . . . . . Robots Built 4 | . . . . 4 . . . Authchips . | . . . . . . . . Time 40 | . . . . 40 . . . Total Robot Build Rating 4 | . . . . 4 . . . Part Schematics Acquired 2 | . . . 1 1 . . . Parts Built 3 | . . . . 2 . . 1 Authchips . | . . . . . . . . Time 427 | . . . . 53 187 . 187 Total Part Build Rating 19 | . . . . 12 . . 7 Parts Repaired 3 | . . . 1 . . . 2 Time 157 | . . . 49 . . . 108 Parts Recycled . | . . . . . . . . Recycled Matter 15 | . . . . . . 15 . Retrieved Matter 15 | . . . . . . 15 . Retrieved Components 16 | . . . . . . . 16 Parts Scanalyzed 2 | . . . 1 . 1 . . Part Schematics Acquired 1 | . . . 1 . . . . Parts Damaged . | . . . . . . . . Bothacking | -11 -10 -9 -8 -7 -6 -5 -4 ------------ Run | Yrd Mat Mat Mat Fac Fac Fac Fac Used RIF Installer . | . . . . . . . . Robots Hacked 1 | . . . . . 1 . . Non-combat . | . . . . . . . . Combat 1 | . . . . . 1 . . Robot Hacks Applied . | . . . . . . . . Relay Couplers Released . | . . . . . . . . Fabnet Peak Effective % 3 | . . . . . 3 1 . Autooverrided 1 | . . . . . 1 . . Robots Rewired . | . . . . . . . . Allies Hacked 4 | . . . . 3 1 . . Hacks Repelled . | . . . . . . . . Allies | -11 -10 -9 -8 -7 -6 -5 -4 -------- Run | Yrd Mat Mat Mat Fac Fac Fac Fac Total Allies 14 | . . . 1 11 2 . . Largest Group 4 | . . . 1 4 2 . . Highest-Rated Group 74 | . . . 10 74 63 . . Highest-Rated Ally 37 | . . . 10 37 34 . . Total Orders . | . . . . . . . . Ally Attacks 31 | . . . . 19 12 . . Total Damage 864 | . . . . 455 409 . . Kills 4 | . . . . 3 1 . . Allies Corrupted . | . . . . . . . . Allies Melted . | . . . . . . . . Intel | -11 -10 -9 -8 -7 -6 -5 -4 ------- Run | Yrd Mat Mat Mat Fac Fac Fac Fac Robot Analysis Total 6 | . 3 1 2 . . . . Derelict Logs Recovered . | . . . . . . . . Drone Launches . | . . . . . . . . Drone Recoveries . | . . . . . . . . Exploration | -11 -10 -9 -8 -7 -6 -5 -4 ------------- Run | Yrd Mat Mat Mat Fac Fac Fac Fac Turns Passed 10940 | 94 725 922 1682 2156 928 1070 3363 Spaces Moved 4572 | 55 388 465 802 859 308 392 1303 Core 22 | 5 . . . . . . 17 Treads 711 | 50 388 273 . . . . . Legs 2802 | . . 192 802 859 308 392 249 Wheels 1037 | . . . . . . . 1037 Hover . | . . . . . . . . Flight . | . . . . . . . . Fastest Speed 50 | 50 160 120 120 195 265 192 102 Average Speed 186 | 150 160 162 165 215 265 217 171 Slowest Speed 1450 | 160 320 190 195 265 265 270 1450 Overloaded Moves . | . . . . . . . . Propulsion Burnouts . | . . . . . . . . Robots Hopped . | . . . . . . . . Cave-ins Triggered . | . . . . . . . . Exploration Rate (%) 28 | 4 60 42 46 33 7 8 28 Regions Visited 7 Branch Regions . Pre-discovered Areas 3 | . . . 1 2 . . . Known Exits Taken 3 | . 1 1 1 . . . . Unknown Exits Taken 4 | 1 . . . 1 1 1 . Scrap Searched . | . . . . . . . . Spaces Dug 18 | . . . . . . . 18 Terrain Destroyed 261 | . . 1 17 36 52 44 111 Melee . | . . . . . . . . Projectile 131 | . . 1 16 16 15 5 78 AOE 129 | . . . . 20 37 39 33 Terrain Rammed . | . . . . . . . . Walls Destroyed . | . . . . . . . . Machines Disabled . | . . . . . . . . Actions | -11 -10 -9 -8 -7 -6 -5 -4 --------- Run | Yrd Mat Mat Mat Fac Fac Fac Fac Total 5907 | 64 439 594 1028 1000 361 517 1904 Wait 466 | . 15 63 101 28 17 55 187 Move 4565 | 54 387 464 801 858 307 391 1303 Hop . | . . . . . . . . Pick Up 113 | 4 3 16 25 9 5 5 46 Fast Attach 67 | 6 1 4 3 3 1 6 43 Attach 45 | . . 1 3 9 3 10 19 Detach 4 | . . . 2 1 . 1 . Swap 42 | . 5 9 6 4 2 6 10 Drop 85 | . 1 14 16 9 . 1 44 Fire 506 | . 27 23 71 70 26 42 247 Melee . | . . . . . . . . Ram . | . . . . . . . . Kick 5 | . . . . 4 . . 1 Crush . | . . . . . . . . Escape Stasis 9 | . . . . 5 . . 4 Rewire . | . . . . . . . . Trap . | . . . . . . . . Miscellaneous . | . . . . . . . . Route ------- -11/Scrapyard -10/Materials (discovered 4 exits: *Mat x3 / [*Min]) -9/Materials (discovered 6 exits: *Mat x3 / [*Min] / [*Sto x2]) -8/Materials (discovered 3 exits: *Fac x3) -7/Factory -6/Factory -5/Factory -4/Factory (discovered 8 exits: *Res x4 / Upp x2 / *Ext x2) History --------- Turn | Location | Event 32 | -11/Scrapyard | Discovered new exit (range 15) 95 | -11/Scrapyard | Entered Materials 285 | -10/Materials | Discovered new exit (range 16) 328 | -10/Materials | Build established: Mutant 405 | -10/Materials | Discovered new exit (range 5) 764 | -10/Materials | Identified exit to Materials 820 | -10/Materials | Entered another Materials area 820 | -9/Materials | Evolved 2 slots: Utility x2 1064 | -9/Materials | Identified exit to Materials 1278 | -9/Materials | Build established: Scavenger-Mutant 1356 | -9/Materials | Discovered new exit (range 14) 1375 | -9/Materials | Discovered new exit (range 16) 1380 | -9/Materials | Found Prototype Ballistic Gun 1380 | -9/Materials | Identified 8R-AWN's Boregun 1431 | -9/Materials | Discovered new exit (range 9) 1739 | -9/Materials | Build established: Mutant 1742 | -9/Materials | Entered another Materials area 1742 | -8/Materials | Evolved 2 slots: Utility x2 1888 | -8/Materials | Identified exit to Factory 2043 | -8/Materials | Build established: Hacker-Mutant 2864 | -8/Materials | Repaired Adv. Myomer Leg 3424 | -8/Materials | Entered Factory 3424 | -7/Factory | Evolved 2 slots: Utility x1, Weapon x1 3607 | -7/Factory | Identified exit to DSF 3732 | -7/Factory | Build established: Hacker-Skirmisher 3793 | -7/Factory | Fabricated K-01 Serf? 3808 | -7/Factory | Garrison activated, responded to threat 4778 | -7/Factory | Fabricated Mass Driver (x2) 4876 | -7/Factory | Lost 4 parts (1p1n1u1w) 5306 | -7/Factory | Garrison activated, responded to threat 5514 | -7/Factory | Discovered new exit (range 14) 5580 | -7/Factory | Entered another Factory area 5580 | -6/Factory | Accompanied by 2 allies 5580 | -6/Factory | Evolved 2 slots: Utility x2 5888 | -6/Factory | Build established: Hacker-Tank 5900 | -6/Factory | Discovered new exit (range 8) 6500 | -6/Factory | Build established: Hacker-Skirmisher 6508 | -6/Factory | Entered another Factory area 6508 | -5/Factory | Evolved 2 slots: Propulsion x2 6740 | -5/Factory | Garrison activated, responded to threat 6879 | -5/Factory | Garrison activated, responded to threat 6924 | -5/Factory | Discovered new exit (range 7) 6972 | -5/Factory | Lost 3 parts (2n1w) 7194 | -5/Factory | Garrison activated, responded to threat 7262 | -5/Factory | Lost 7 parts (2n3u2w) 7542 | -5/Factory | Build established: Hacker-Tank 7578 | -5/Factory | Entered another Factory area 7578 | -4/Factory | Evolved 2 slots: Propulsion x2 7748 | -4/Factory | Lost 3 parts (1p1n1u) 7902 | -4/Factory | Lost 4 parts (2n1u1w) 8178 | -4/Factory | Discovered new exit (range 9) 8254 | -4/Factory | Lost 5 parts (3n2w) 8548 | -4/Factory | Build established: Scavenger-Skirmisher 8640 | -4/Factory | Fabricated Adv. Myomer Leg? 8668 | -4/Factory | Lost 3 parts (2n1u) 8942 | -4/Factory | Garrison activated, responded to threat 8972 | -4/Factory | Lost 3 parts (2n1u) 9081 | -4/Factory | Identified exit to Upper Caves 9081 | -4/Factory | Identified exit to Extension 9546 | -4/Factory | Core integrity fell below 50% 9579 | -4/Factory | Lost 5 parts (1p1n1u2w) 9679 | -4/Factory | Lost 3 parts (1p1n1u) 9737 | -4/Factory | Identified exit to Research 9990 | -4/Factory | Build established: Scavenger-Gunner 10095 | -4/Factory | Repaired Mni. Assault Cannon 10136 | -4/Factory | Repaired Imp. Heat Sink 10559 | -4/Factory | Lost 8 parts (1n5u2w) 10573 | -4/Factory | Destroyed 7 combat bots 10615 | -4/Factory | Lost 7 parts (1p3n1u2w) 10932 | -4/Factory | Core integrity fell below 20% 10941 | -4/Factory | Destroyed by G-67 Veteran with Field Laser Last Messages --------------- 10924_ R-10 Processor collects Wheel. 10926_ Slug penetrates Megafabricator. 10926_ Megafabricator disabled. 10927_ Hacking Suite destroyed. 10927_ K-01 Serf collects debris. 10927_ S-27 Virus destroyed. 10928_ Flexi-carbon Leg destroyed. 10928_ Penetrated by Slug. 10928_ Myomer Leg destroyed. 10929_ W-44 Eye distress signal alerts nearby ally. 10930_ K-01 Serf collects debris. 10931_ Penetrated by Slug. 10933_ K-01 Serf cleans the Neutrino Reactor. 10934_ System corrupted: Matter fused (-7). 10934_ Mni. Grenade Launcher destroyed. 10938_ K-01 Serf collects debris. 10938_ S-27 Virus destroyed. 10939_ Penetrated by Slug. 10939_ R-10 Processor collects Lgt. Nuclear Core. 10940_ K-01 Serf destroyed. Map ----- +----------------------------------------------------+ | ?????????????????????????????????????????????????? | | ?????????????????????????????????????????????????? | | ?????????????????????????????????????????????????? | | ?????????????????????????????????????????????????? | | ?????????????????????????????????????????????????? | | ?????????????????????????????????????????????????? | | ?????????????????????????????????????????????????? | | ?????????????????????????????????????????????????? | | ?????????????????????????????????????????????????? | | ?????????????????????????????????????????????????? | | ?????????????????????????????????????????????????? | | ?????????????????????????????????????????????????? | | ?????????????????????????????????????????????????? | | ?????????????????????????????????????????????????? | | ?????????????????????????????????????????????????? | | ?????????????????????????????????????????????????? | | ??????????????????????##########+#???????????????? | | ?????????????????????? ????????????????? | | ?????????????????????? ????????????????? | | ???????????????????""""" """" ??????????????? | | ???????????????????""""" """" ??????????????? | | ????????????????????"""" """"^"?????????????? | | ???????????????????""""" ??????????????? | | ???????????????????"""" """" ??????????????? | | ??????????????????"""""" """" ??????????????? | | ??????????????????"""""" @ %""" """"??????????? | | ??????????????? ! """""" ????????? | | ?????????? """""" ! """ """"??????????? | | ?????????? =%* """ ""????????????? | | ??????????????# """"" = """ """"??????????? | | ??????????????? """""" = g ????????? | | ??????????????????"""""" A%s """" """"??????????? | | ??????????????????"""""" gs"""" ??????????????? | | ???????????????????""""" g g """" """"??????????? | | ???????????????????""""" R k ????????? | | ??????????????#????"""""g Y ! ????????? | | ??????????????# """""" gw######### ????????? | | ??????????????# """u # #?????????????? | | ??????????????# % #[ """ #?????????????? | | ??????????????# """%w + !"""" #?????????????? | | ???????????? + """"" #*!"""" #?????????????? | | ??????????? # """""" % # """" #?????????????? | | ??????????????????"""""" #| """ #?????????????? | | ???????????????????""""" # """ #?????????????? | | ??????????????? ?""""" # """ #?????????????? | | ??????????????# """""" # #?????????????? | | ??????????????# """""" #########?????????????? | | ???????????#### """""" #???## ####???????????? | | ??????????? # #?? ???????????? | | ??????????? !# """""" #?? """???????????? | +----------------------------------------------------+ Best States ------------- Heat Dissipation 95 Energy Generation 21 Energy Capacity 315 Matter Stores 300 Matter Capacity 300 Sight Range 18 Robot Scan Range 15 Terrain Scan Density 110 Additional Mass Support 9 Armor Coverage 225 Resistance: KI 40 Resistance: TH 20 Resistance: EX 20 Resistance: EM 20 Resistance: I 20 Resistance: S 20 Resistance: P 20 Weapon Shielding 66 Phase Shifting 5 Evasion (%) 55 Target Analysis 6 Recoil Reduction 2 Matter Filtering 50 Offensive Hacking 40 Item Schematics ----------------- Adv. Myomer Leg | -8/Materials | Scanalyzed Mass Driver | -7/Factory | Hacked Robot Schematics ------------------ None Fabricated ------------ K-01 Serf | x4 | -7/Factory | Preloaded Mass Driver | x2 | -7/Factory Adv. Myomer Leg | x1 | -4/Factory Alien Tech Used ----------------- None Achievements -------------- My Command Is Your Wish Party Time Prolific Hacker Challenges ------------ None Game ------ Seed SpreadGaussCarapace Manual? 0 Play Time 01:38:40 Cumulative 24.9 hours Start 2024.08.07 @ 18:33:13 End 2024.08.07 @ 21:49:39 Sessions 5 Manual Loads 0 Difficulty Adventurer Special Mode None Game No. 9 Rogue 4 Adventurer 4 Explorer 1 Win Type - Total 1 Types 1/0/0/0/0/0/0/0/0 Lore% 2 Gallery% 20 Achievement% 26 Wizard Run 0 Options --------- Layout 0 ASCII 0 Keyboard 1 Movement Vi Keybinds 0 Fullscreen 1 Font 18/X11 Map View 76x50 Zoom Use 0% Tactical HUD 1 Map Filters NONE Filters NONE Steam X RUN: fc9bc761-d473-4900-bb2b-1dfeeb3f39da